[Event "Saint Louis Masters"]
[Date "2024.12.05"]
[White "Kantor, Gergely"]
[Black "Hakobyan, Aram"]
[WhiteElo "2550"]
[BlackElo "2625"]
[Round "6.3"]
[Result "0-1"]
[TimeControl "5400+30"]

1. d4 {[%clk 01:30:53] [%emt 00:00:06]} Nf6 {[%clk 01:29:31] [%emt 00:01:29]} 2.
c4 {[%clk 01:31:17] [%emt 00:00:05]} e6 {[%clk 01:29:54] [%emt 00:00:08]} 3. Nf3
{[%clk 01:31:29] [%emt 00:00:18]} d5 {[%clk 01:30:12] [%emt 00:00:13]} 4. g3
{[%clk 01:30:22] [%emt 00:01:37]} Bb4+ {[%clk 01:29:37] [%emt 00:01:05]} 5. Bd2
{[%clk 01:30:39] [%emt 00:00:13]} a5 {[%clk 01:29:46] [%emt 00:00:20]} 6. Bg2
{[%clk 01:29:01] [%emt 00:02:07]} dxc4 {[%clk 01:29:49] [%emt 00:00:28]} 7. Qc2
{[%clk 01:24:42] [%emt 00:04:49]} c5 {[%clk 01:29:52] [%emt 00:00:27]} 8. a3
{[%clk 01:18:27] [%emt 00:06:45]} Bxd2+ {[%clk 01:29:55] [%emt 00:00:27]} 9.
Nbxd2 {[%clk 01:17:28] [%emt 00:01:30]} cxd4 {[%clk 01:30:14] [%emt 00:00:10]}
10. Nxc4 {[%clk 01:17:39] [%emt 00:00:19]} Nc6 {[%clk 01:30:27] [%emt 00:00:17]}
11. O-O {[%clk 01:09:51] [%emt 00:08:18]} d3 {[%clk 01:28:04] [%emt 00:02:53]}
12. exd3 {[%clk 01:05:29] [%emt 00:04:53]} O-O {[%clk 01:27:18] [%emt 00:01:15]}
13. Rac1 {[%clk 01:05:07] [%emt 00:00:52]} Ra6 {[%clk 01:26:49] [%emt 00:00:59]}
14. Nce5 {[%clk 00:54:41] [%emt 00:10:57]} h6 {[%clk 01:19:12] [%emt 00:08:03]}
15. Rfd1 {[%clk 00:52:31] [%emt 00:02:43]} Nd5 {[%clk 01:09:24] [%emt 00:10:18]}
16. Nxc6 {[%clk 00:37:26] [%emt 00:15:36]} Rxc6 {[%clk 01:08:19] [%emt
00:01:34]} 17. Qd2 {[%clk 00:36:56] [%emt 00:01:00]} Rxc1 {[%clk 01:05:53] [%emt
00:02:56]} 18. Rxc1 {[%clk 00:37:19] [%emt 00:00:08]} b6 {[%clk 01:05:18] [%emt
00:01:05]} 19. Ne5 {[%clk 00:36:51] [%emt 00:00:58]} Bb7 {[%clk 01:03:30] [%emt
00:02:17]} 20. d4 {[%clk 00:30:06] [%emt 00:07:16]} Ba8 {[%clk 00:52:54] [%emt
00:11:06]} 21. Qe2 {[%clk 00:23:59] [%emt 00:06:37]} Ne7 {[%clk 00:42:06] [%emt
00:11:18]} 22. Bxa8 {[%clk 00:22:57] [%emt 00:01:32]} Qxa8 {[%clk 00:42:28]
[%emt 00:00:07]} 23. Nd7 {[%clk 00:16:13] [%emt 00:07:15]} Rc8 {[%clk 00:38:18]
[%emt 00:04:39]} 24. Rxc8+ {[%clk 00:14:40] [%emt 00:02:01]} Qxc8 {[%clk
00:38:46] [%emt 00:00:02]} 25. Qb5 {[%clk 00:14:36] [%emt 00:00:35]} Nd5 {[%clk
00:37:26] [%emt 00:01:50]} 26. Ne5 {[%clk 00:14:14] [%emt 00:00:51]} g6 {[%clk
00:34:15] [%emt 00:03:41]} 27. h4 {[%clk 00:13:46] [%emt 00:00:58]} Kg7 {[%clk
00:34:28] [%emt 00:00:17]} 28. Kg2 {[%clk 00:13:35] [%emt 00:00:41]} h5 {[%clk
00:32:21] [%emt 00:02:38]} 29. Kg1 {[%clk 00:12:37] [%emt 00:01:28]} Qd8 {[%clk
00:28:59] [%emt 00:03:51]} 30. Qc6 {[%clk 00:09:52] [%emt 00:03:16]} Ne7 {[%clk
00:27:35] [%emt 00:01:54]} 31. Qf3 {[%clk 00:08:25] [%emt 00:01:57]} f6 {[%clk
00:22:34] [%emt 00:05:31]} 32. Nc4 {[%clk 00:08:49] [%emt 00:00:06]} b5 {[%clk
00:21:57] [%emt 00:01:07]} 33. Ne3 {[%clk 00:06:47] [%emt 00:02:32]} Qxd4 {[%clk
00:18:48] [%emt 00:03:39]} 34. Qb7 {[%clk 00:07:09] [%emt 00:00:07]} Qc5 {[%clk
00:18:53] [%emt 00:00:25]} 35. b4 {[%clk 00:02:08] [%emt 00:05:32]} axb4 {[%clk
00:19:07] [%emt 00:00:15]} 36. axb4 {[%clk 00:02:36] [%emt 00:00:03]} Qxb4
{[%clk 00:17:29] [%emt 00:02:09]} 37. Nc2 {[%clk 00:02:58] [%emt 00:00:08]} Qb1+
{[%clk 00:10:33] [%emt 00:07:25]} 38. Kg2 {[%clk 00:03:22] [%emt 00:00:05]} Kf7
{[%clk 00:10:49] [%emt 00:00:15]} 39. Na3 {[%clk 00:03:42] [%emt 00:00:10]} Qd3
{[%clk 00:11:03] [%emt 00:00:10]} 40. Nxb5 {[%clk 00:04:03] [%emt 00:00:14]}
Qd5+ {[%clk 00:11:09] [%emt 00:00:24]} 41. Qxd5 {[%emt 00:00:16]} Nxd5 {[%clk
00:11:06] [%emt 00:00:31]} 42. f4 {[%clk 00:03:52] [%emt 00:00:57]} e5 {[%clk
00:10:00] [%emt 00:01:36]} 43. Kf3 {[%clk 00:03:27] [%emt 00:00:55]} Ke6 {[%clk
00:10:07] [%emt 00:00:22]} 44. Ke4 {[%clk 00:02:58] [%emt 00:01:00]} f5+ {[%clk
00:07:52] [%emt 00:02:45]} 45. Kf3 {[%clk 00:03:24] [%emt 00:00:03]} e4+ {[%clk
00:08:12] [%emt 00:00:09]} 46. Ke2 {[%clk 00:03:31] [%emt 00:00:25]} Ne7 {[%clk
00:07:26] [%emt 00:01:16]} 47. Nd4+ {[%clk 00:01:21] [%emt 00:02:40]} Kd5 {[%clk
00:07:46] [%emt 00:00:10]} 48. Nc2 {[%clk 00:01:46] [%emt 00:00:05]} Kc5 {[%clk
00:07:34] [%emt 00:00:41]} 49. Kd2 {[%clk 00:01:39] [%emt 00:00:37]} Nd5 {[%clk
00:07:44] [%emt 00:00:19]} 50. Ke2 {[%clk 00:01:56] [%emt 00:00:14]} Kc4 {[%clk
00:07:17] [%emt 00:00:57]} 51. Kd2 {[%clk 00:02:24] [%emt 00:00:03]} Nb6 {[%clk
00:06:37] [%emt 00:01:10]} 52. Ne3+ {[%clk 00:02:20] [%emt 00:00:33]} Kb3 {[%clk
00:06:49] [%emt 00:00:18]} 53. Kd1 {[%clk 00:02:12] [%emt 00:00:39]} Kb4 {[%clk
00:06:23] [%emt 00:00:55]} 54. Ke1 {[%clk 00:01:46] [%emt 00:00:57]} Kc5 {[%clk
00:06:05] [%emt 00:00:47]} 55. Ke2 {[%clk 00:02:00] [%emt 00:00:17]} Kd4 {[%clk
00:06:21] [%emt 00:00:13]} 56. Nc2+ {[%clk 00:01:58] [%emt 00:00:33]} Kc4 {[%clk
00:06:45] [%emt 00:00:07]} 57. Kd2 {[%clk 00:02:00] [%emt 00:00:29]} Kc5 {[%clk
00:05:37] [%emt 00:01:37]} 58. Ke3 {[%clk 00:01:53] [%emt 00:00:36]} Nd5+ {[%clk
00:05:50] [%emt 00:00:17]} 59. Ke2 {[%clk 00:02:16] [%emt 00:00:08]} Nb4 {[%clk
00:03:38] [%emt 00:02:41]} 60. Na3 {[%clk 00:01:39] [%emt 00:01:08]} Nc6 {[%clk
00:03:45] [%emt 00:00:23]} 61. Kd2 {[%clk 00:01:28] [%emt 00:00:41]} Nd4 {[%clk
00:04:08] [%emt 00:00:06]} 62. Ke3 {[%clk 00:01:20] [%emt 00:00:39]} Kb4 {[%clk
00:04:18] [%emt 00:00:19]} 63. Nb1 {[%clk 00:01:32] [%emt 00:00:19]} Nf3 {[%clk
00:04:39] [%emt 00:00:08]} 64. Ke2 {[%clk 00:00:33] [%emt 00:01:30]} Kb3 {[%clk
00:05:05] [%emt 00:00:04]} 65. Kd1 {[%clk 00:00:33] [%emt 00:00:30]} Kb2 {[%clk
00:05:29] [%emt 00:00:06]} 66. Nd2 {[%clk 00:00:43] [%emt 00:00:20]} Nxd2 {[%clk
00:05:44] [%emt 00:00:15]} 67. Kxd2 {[%clk 00:01:11] [%emt 00:00:02]} Kb3 {[%clk
00:06:07] [%emt 00:00:07]} 68. Ke2 {[%clk 00:00:34] [%emt 00:01:07]} Kc4 {[%clk
00:06:31] [%emt 00:00:06]} 69. Ke3 {[%clk 00:00:57] [%emt 00:00:08]} Kc3 {[%clk
00:06:56] [%emt 00:00:05]} 70. Ke2 {[%clk 00:01:24] [%emt 00:00:02]} Kd4 {[%clk
00:07:10] [%emt 00:00:15]} 71. Kd2 {[%clk 00:01:48] [%emt 00:00:07]} e3+ {[%clk
00:06:31] [%emt 00:01:09]} 72. Ke1 {[%clk 00:01:51] [%emt 00:00:27]} Kd3 {[%clk
00:06:47] [%emt 00:00:14]} 73. Kd1 {[%clk 00:02:11] [%emt 00:00:10]} e2+ {[%clk
00:07:00] [%emt 00:00:17]} 74. Ke1 {[%clk 00:02:32] [%emt 00:00:09]} Ke3 {[%emt
00:01:23]} 75. g4 {[%clk 00:01:40]} hxg4 {[%clk 00:07:04] [%emt 00:00:53]} 76.
h5 {[%clk 00:02:07] [%emt 00:00:03]} g3 {[%clk 00:07:28] [%emt 00:00:07]} 0-1

[Site "Europe Echecs"]

[Event "Saint Louis Masters"]
[Date "2024.12.05"]
[White "Donchenko, Alexander"]
[Black "Kevlishvili, Robby"]
[WhiteElo "2618"]
[BlackElo "2556"]
[Round "6.4"]
[Result "1/2-1/2"]
[TimeControl "5400+30"]

1. c4 {[%clk 01:30:57] [%emt 00:00:02]} e6 {[%clk 01:30:52] [%emt 00:00:09]} 2.
Nc3 {[%clk 01:31:04] [%emt 00:00:23]} d5 {[%clk 01:31:13] [%emt 00:00:10]} 3. d4
{[%clk 01:31:22] [%emt 00:00:12]} Nf6 {[%clk 01:31:35] [%emt 00:00:07]} 4. cxd5
{[%clk 01:31:36] [%emt 00:00:16]} exd5 {[%clk 01:31:58] [%emt 00:00:07]} 5. Bg5
{[%clk 01:31:54] [%emt 00:00:11]} c6 {[%clk 01:32:12] [%emt 00:00:17]} 6. e3
{[%clk 01:32:08] [%emt 00:00:17]} h6 {[%clk 01:31:33] [%emt 00:01:09]} 7. Bh4
{[%clk 01:32:19] [%emt 00:00:19]} Be7 {[%clk 01:31:51] [%emt 00:00:11]} 8. Bd3
{[%clk 01:32:16] [%emt 00:00:33]} O-O {[%clk 01:32:12] [%emt 00:00:09]} 9. Qc2
{[%clk 01:28:09] [%emt 00:04:37]} Re8 {[%clk 01:32:11] [%emt 00:00:31]} 10. Nge2
{[%clk 01:28:09] [%emt 00:00:30]} a5 {[%clk 01:31:49] [%emt 00:00:52]} 11. h3
{[%clk 01:26:13] [%emt 00:02:26]} Na6 {[%clk 01:30:38] [%emt 00:01:42]} 12. a3
{[%clk 01:26:09] [%emt 00:00:34]} Nc7 {[%clk 01:30:52] [%emt 00:00:15]} 13. Bg3
{[%clk 01:24:50] [%emt 00:01:49]} Ne6 {[%clk 01:30:33] [%emt 00:00:48]} 14. O-O
{[%clk 01:22:04] [%emt 00:03:17]} b6 {[%clk 01:22:23] [%emt 00:08:40]} 15. Rad1
{[%clk 01:15:24] [%emt 00:07:10]} Ba6 {[%clk 01:18:47] [%emt 00:04:06]} 16. Bf5
{[%clk 01:13:43] [%emt 00:02:11]} Bf8 {[%clk 01:17:39] [%emt 00:01:38]} 17. Qd2
{[%clk 01:12:18] [%emt 00:01:54]} b5 {[%clk 01:12:45] [%emt 00:05:25]} 18. Bd3
{[%clk 00:59:36] [%emt 00:13:12]} 1/2-1/2

[Site "Europe Echecs"]

[Event "Saint Louis Masters"]
[Date "2024.12.05"]
[White "Heimann, Mark"]
[Black "Theodorou, Nikolas"]
[WhiteElo "2459"]
[BlackElo "2600"]
[Round "6.5"]
[Result "1-0"]
[TimeControl "5400+30"]

1. e4 {[%clk 01:30:24] [%emt 00:00:35]} c5 {[%clk 01:30:53] [%emt 00:00:07]} 2.
Nf3 {[%clk 01:30:50] [%emt 00:00:05]} Nc6 {[%clk 01:31:18] [%emt 00:00:05]} 3.
Bb5 {[%clk 01:31:16] [%emt 00:00:03]} Nf6 {[%clk 01:23:49] [%emt 00:07:59]} 4.
Nc3 {[%clk 01:31:38] [%emt 00:00:08]} g6 {[%clk 01:24:14] [%emt 00:00:05]} 5. h3
{[%clk 01:25:27] [%emt 00:06:41]} Qc7 {[%clk 01:17:47] [%emt 00:06:58]} 6. O-O
{[%clk 01:25:47] [%emt 00:00:10]} Bg7 {[%clk 01:17:32] [%emt 00:00:45]} 7. Re1
{[%clk 01:21:34] [%emt 00:04:42]} e5 {[%clk 01:15:40] [%emt 00:02:22]} 8. d3
{[%clk 01:20:06] [%emt 00:01:58]} h6 {[%clk 01:12:50] [%emt 00:03:21]} 9. Be3
{[%clk 01:17:37] [%emt 00:02:59]} Nd4 {[%clk 01:13:13] [%emt 00:00:07]} 10. Bc4
{[%clk 01:17:12] [%emt 00:00:55]} O-O {[%clk 01:13:36] [%emt 00:00:06]} 11. Nh2
{[%clk 01:14:40] [%emt 00:03:02]} Kh7 {[%clk 01:11:34] [%emt 00:02:33]} 12. Ng4
{[%clk 01:08:32] [%emt 00:06:37]} Nxg4 {[%clk 01:11:57] [%emt 00:00:07]} 13.
hxg4 {[%clk 01:08:58] [%emt 00:00:03]} d6 {[%clk 01:12:22] [%emt 00:00:05]} 14.
Nd5 {[%clk 01:07:23] [%emt 00:02:05]} Qd8 {[%clk 01:11:01] [%emt 00:01:52]} 15.
Bxd4 {[%clk 01:04:11] [%emt 00:03:42]} exd4 {[%clk 01:04:15] [%emt 00:07:15]}
16. g3 {[%clk 01:01:26] [%emt 00:03:15]} Qg5 {[%clk 01:02:53] [%emt 00:01:53]}
17. f3 {[%clk 01:01:40] [%emt 00:00:15]} f5 {[%clk 01:02:46] [%emt 00:00:37]}
18. exf5 {[%clk 01:00:45] [%emt 00:01:26]} Bxf5 {[%clk 01:03:13] [%emt
00:00:02]} 19. Qc1 {[%clk 00:57:45] [%emt 00:03:30]} Qxc1 {[%clk 01:00:08] [%emt
00:03:35]} 20. Raxc1 {[%clk 00:57:56] [%emt 00:00:19]} Bd7 {[%clk 01:00:36]
[%emt 00:00:02]} 21. Re7 {[%clk 00:58:00] [%emt 00:00:27]} Bc6 {[%clk 01:01:04]
[%emt 00:00:02]} 22. Nc7 {[%clk 00:57:58] [%emt 00:00:32]} d5 {[%clk 00:49:03]
[%emt 00:12:31]} 23. Nxa8 {[%clk 00:55:43] [%emt 00:02:44]} dxc4 {[%clk
00:49:28] [%emt 00:00:06]} 24. Nc7 {[%clk 00:56:11] [%emt 00:00:03]} Rxf3 {[%clk
00:47:52] [%emt 00:02:05]} 25. Ne6 {[%clk 00:56:31] [%emt 00:00:09]} 1-0

[Site "Europe Echecs"]

[Event "Saint Louis Masters"]
[Date "2024.12.05"]
[White "Zhou, Jianchao"]
[Black "Kacharava, Nikolozi"]
[WhiteElo "2572"]
[BlackElo "2510"]
[Round "6.6"]
[Result "1/2-1/2"]
[TimeControl "5400+30"]

1. c4 {[%clk 01:25:50] [%emt 00:05:09]} e5 {[%clk 01:30:20] [%emt 00:00:41]} 2.
Nc3 {[%clk 01:24:59] [%emt 00:01:21]} d6 {[%clk 01:30:13] [%emt 00:00:37]} 3.
Nf3 {[%clk 01:25:24] [%emt 00:00:05]} f5 {[%clk 01:30:08] [%emt 00:00:35]} 4. d4
{[%clk 01:25:50] [%emt 00:00:03]} e4 {[%clk 01:30:16] [%emt 00:00:22]} 5. Ng1
{[%clk 01:26:17] [%emt 00:00:02]} Be7 {[%clk 01:28:49] [%emt 00:01:57]} 6. Bf4
{[%clk 01:26:39] [%emt 00:00:09]} Nf6 {[%clk 01:27:06] [%emt 00:02:13]} 7. e3
{[%clk 01:26:35] [%emt 00:00:34]} c6 {[%clk 01:26:28] [%emt 00:01:09]} 8. h4
{[%clk 01:26:44] [%emt 00:00:20]} Na6 {[%clk 01:24:26] [%emt 00:02:32]} 9. Nh3
{[%clk 01:25:04] [%emt 00:02:09]} Nc7 {[%clk 01:23:01] [%emt 00:01:55]} 10. Be2
{[%clk 01:25:00] [%emt 00:00:35]} O-O {[%clk 01:21:53] [%emt 00:01:38]} 11. Bg3
{[%clk 01:24:14] [%emt 00:01:16]} Kh8 {[%clk 01:17:59] [%emt 00:04:24]} 12. h5
{[%clk 01:22:07] [%emt 00:02:36]} Qe8 {[%clk 01:10:38] [%emt 00:07:52]} 13. d5
{[%clk 01:13:00] [%emt 00:09:37]} c5 {[%clk 01:05:11] [%emt 00:05:57]} 14. Nf4
{[%clk 01:09:30] [%emt 00:03:59]} Nd7 {[%clk 00:57:33] [%emt 00:08:09]} 15. h6
{[%clk 01:02:49] [%emt 00:07:11]} g6 {[%clk 00:55:31] [%emt 00:02:31]} 16. Ne6
{[%clk 00:57:04] [%emt 00:06:15]} Nxe6 {[%clk 00:55:54] [%emt 00:00:08]} 17.
dxe6 {[%clk 00:57:31] [%emt 00:00:02]} Ne5 {[%clk 00:54:02] [%emt 00:02:22]} 18.
Qd5 {[%clk 00:56:55] [%emt 00:01:06]} Rf6 {[%clk 00:41:22] [%emt 00:13:11]} 19.
Nb5 {[%clk 00:47:41] [%emt 00:09:44]} Qc6 {[%clk 00:36:34] [%emt 00:05:18]} 20.
Qxc6 {[%clk 00:24:04] [%emt 00:24:07]} bxc6 {[%clk 00:36:55] [%emt 00:00:09]}
21. Nxd6 {[%clk 00:24:13] [%emt 00:00:21]} Bxd6 {[%clk 00:35:13] [%emt
00:02:13]} 22. O-O-O {[%clk 00:24:27] [%emt 00:00:15]} Nd3+ {[%clk 00:33:16]
[%emt 00:02:27]} 23. Bxd3 {[%clk 00:24:47] [%emt 00:00:11]} Bxg3 {[%clk
00:32:16] [%emt 00:01:30]} 24. e7 {[%clk 00:25:09] [%emt 00:00:08]} Ba6 {[%clk
00:19:51] [%emt 00:12:53]} 25. fxg3 {[%clk 00:02:28] [%emt 00:23:11]} exd3
{[%clk 00:20:17] [%emt 00:00:04]} 26. Rxd3 {[%clk 00:02:47] [%emt 00:00:11]} Rg8
{[%clk 00:20:42] [%emt 00:00:05]} 27. b3 {[%clk 00:02:58] [%emt 00:00:19]} Re6
{[%clk 00:12:00] [%emt 00:09:11]} 28. Rd7 {[%clk 00:03:22] [%emt 00:00:07]} Re8
{[%clk 00:11:38] [%emt 00:00:52]} 29. Rxa7 {[%clk 00:01:57] [%emt 00:01:56]} Bc8
{[%clk 00:11:55] [%emt 00:00:12]} 30. Rd1 {[%clk 00:02:08] [%emt 00:00:19]} Kg8
{[%clk 00:12:22] [%emt 00:00:03]} 31. Rd8 {[%clk 00:02:19] [%emt 00:00:19]} Kf7
{[%clk 00:12:45] [%emt 00:00:07]} 32. Ra8 {[%clk 00:02:28] [%emt 00:00:21]} Bd7
{[%clk 00:12:56] [%emt 00:00:19]} 33. Ra7 {[%clk 00:02:17] [%emt 00:00:41]} Bc8
{[%clk 00:13:21] [%emt 00:00:06]} 34. Ra8 {[%clk 00:02:17] [%emt 00:00:29]} Bd7
{[%clk 00:13:31] [%emt 00:00:20]} 35. Ra7 {[%clk 00:02:17] [%emt 00:00:30]}
1/2-1/2

[Site "Europe Echecs"]

[Event "Saint Louis Masters"]
[Date "2024.12.05"]
[White "Swiercz, Dariusz"]
[Black "Robson, Ray"]
[WhiteElo "2574"]
[BlackElo "2700"]
[Round "6.7"]
[Result "1/2-1/2"]
[TimeControl "5400+30"]

1. e4 {[%clk 01:30:34] [%emt 00:00:25]} c5 {[%clk 01:30:40] [%emt 00:00:20]} 2.
Nf3 {[%clk 01:30:24] [%emt 00:00:41]} d6 {[%clk 01:30:40] [%emt 00:00:29]} 3.
Bb5+ {[%clk 01:30:50] [%emt 00:00:05]} Bd7 {[%clk 01:30:22] [%emt 00:00:47]} 4.
Bxd7+ {[%clk 01:31:10] [%emt 00:00:10]} Nxd7 {[%clk 01:30:22] [%emt 00:00:29]}
5. c4 {[%clk 01:31:23] [%emt 00:00:17]} e6 {[%clk 01:28:47] [%emt 00:02:06]} 6.
Nc3 {[%clk 01:31:44] [%emt 00:00:10]} Ne5 {[%clk 01:25:22] [%emt 00:03:55]} 7.
d4 {[%clk 01:30:53] [%emt 00:01:21]} Nxf3+ {[%clk 01:21:18] [%emt 00:04:34]} 8.
gxf3 {[%clk 01:31:05] [%emt 00:00:18]} cxd4 {[%clk 01:19:33] [%emt 00:02:14]} 9.
Qxd4 {[%clk 01:31:24] [%emt 00:00:11]} Ne7 {[%clk 01:19:19] [%emt 00:00:44]} 10.
b3 {[%clk 01:27:55] [%emt 00:04:00]} Nc6 {[%clk 01:14:55] [%emt 00:04:53]} 11.
Qe3 {[%clk 01:27:57] [%emt 00:00:28]} Nb4 {[%clk 00:49:00] [%emt 00:26:25]} 12.
Qe2 {[%clk 01:08:48] [%emt 00:19:39]} g6 {[%clk 00:40:38] [%emt 00:08:52]} 13.
Bb2 {[%clk 01:06:48] [%emt 00:02:30]} Bg7 {[%clk 00:30:45] [%emt 00:10:23]} 14.
O-O-O {[%clk 01:05:01] [%emt 00:02:18]} O-O {[%clk 00:30:34] [%emt 00:00:40]}
15. Kb1 {[%clk 00:57:44] [%emt 00:07:47]} a6 {[%clk 00:26:52] [%emt 00:04:13]}
16. c5 {[%clk 00:43:39] [%emt 00:14:36]} d5 {[%clk 00:14:14] [%emt 00:13:06]}
17. exd5 {[%clk 00:37:10] [%emt 00:06:59]} exd5 {[%clk 00:07:43] [%emt
00:07:00]} 18. Nxd5 {[%clk 00:34:38] [%emt 00:03:02]} Nxd5 {[%clk 00:07:42]
[%emt 00:00:31]} 19. Bxg7 {[%clk 00:35:00] [%emt 00:00:08]} Re8 {[%clk 00:07:45]
[%emt 00:00:27]} 20. Qc4 {[%clk 00:29:59] [%emt 00:05:31]} Kxg7 {[%clk 00:07:57]
[%emt 00:00:18]} 21. Rxd5 {[%clk 00:30:02] [%emt 00:00:27]} Qf6 {[%clk 00:08:06]
[%emt 00:00:21]} 22. f4 {[%clk 00:06:16] [%emt 00:24:16]} Rad8 {[%clk 00:07:04]
[%emt 00:01:32]} 23. Rhd1 {[%clk 00:06:30] [%emt 00:00:15]} Rxd5 {[%clk
00:07:02] [%emt 00:00:34]} 24. Rxd5 {[%clk 00:06:47] [%emt 00:00:13]} Re1+
{[%clk 00:04:46] [%emt 00:02:45]} 25. Kc2 {[%clk 00:07:16] [%emt 00:00:02]} Rh1
{[%clk 00:03:34] [%emt 00:01:42]} 26. Rd6 {[%clk 00:03:26] [%emt 00:04:20]} Qf5+
{[%clk 00:02:51] [%emt 00:01:13]} 27. Kb2 {[%clk 00:03:51] [%emt 00:00:05]} Rxh2
{[%clk 00:03:02] [%emt 00:00:19]} 28. Qd4+ {[%clk 00:04:17] [%emt 00:00:04]} Kh6
{[%clk 00:03:19] [%emt 00:00:13]} 29. Rb6 {[%clk 00:02:05] [%emt 00:02:43]} Qg4
{[%clk 00:01:39] [%emt 00:02:10]} 30. Ka3 {[%clk 00:01:28] [%emt 00:01:07]} Qg1
{[%clk 00:01:34] [%emt 00:00:34]} 31. f5 {[%clk 00:00:53] [%emt 00:01:06]} Rxf2
{[%clk 00:01:45] [%emt 00:00:18]} 32. Qh4+ {[%clk 00:01:19] [%emt 00:00:04]} Kg7
{[%clk 00:02:12] [%emt 00:00:03]} 33. Qf6+ {[%clk 00:00:34] [%emt 00:01:15]} Kh6
{[%clk 00:02:28] [%emt 00:00:14]} 34. Qh4+ {[%clk 00:01:01] [%emt 00:00:03]} Kg7
{[%clk 00:02:56] [%emt 00:00:02]} 35. Qf6+ {[%clk 00:00:47] [%emt 00:00:44]} Kh6
{[%clk 00:03:24] [%emt 00:00:02]} 36. Qh4+ {[%clk 00:01:13] [%emt 00:00:04]}
1/2-1/2

[Site "Europe Echecs"]